bitfinex/quotes_BTCUSD_20250523
["timestamp","ask_amount","ask_price","bid_price","bid_amount"]
[1748002173827,0.2024476,108670.0,108660.0,0.36416]
[1748002174473,0.2024476,108670.0,108660.0,0.76404864]
[1748002175501,0.2024476,108670.0,108660.0,0.36416]
[1748002175919,0.01120174,108670.0,108660.0,0.76404864]
[1748002176130,0.01120174,108670.0,108660.0,0.97571745]
[1748002176131,0.03880697,108670.0,108660.0,0.97571745]
[1748002176342,0.002,108670.0,108660.0,1.33412238]
[1748002176525,0.002,108670.0,108660.0,1.45576794]
[1748002176789,0.002,108670.0,108660.0,2.21417145]
[1748002176972,0.002,108670.0,108660.0,2.17859945]
[1748002177416,0.00015343,108680.0,108670.0,1.01603755]
[1748002177618,0.00015343,108680.0,108670.0,1.10558311]
[1748002181919,0.00015343,108680.0,108670.0,1.51938506]
[1748002182118,0.00015343,108680.0,108670.0,1.60890657]
[1748002182329,0.00015343,108680.0,108670.0,1.20890657]
[1748002183017,0.00015343,108680.0,108670.0,1.60890657]
[1748002183571,0.20258197,108680.0,108670.0,0.4894342]
[1748002184002,0.01855548,108680.0,108670.0,0.67347763]
[1748002184231,0.21178329,108680.0,108670.0,1.02267971]
[1748002184442,0.20258239,108680.0,108670.0,0.83863637]
[1748002184672,0.00015343,108680.0,108670.0,1.04108311]
[1748002184886,0.02775612,108680.0,108670.0,1.13060462]
[1748002185094,0.20258197,108680.0,108670.0,0.91895571]
[1748002185310,0.19324543,108670.0,108660.0,0.48941015]
[1748002185521,0.19324543,108670.0,108660.0,0.39988864]
[1748002186130,0.19326321,108660.0,108650.0,0.41426919]
[1748002186374,0.19326321,108660.0,108650.0,0.50381475]
[1748002186587,0.19126321,108660.0,108650.0,0.10392611]
[1748002186791,0.20046597,108660.0,108650.0,0.50611534]
[1748002186965,0.20046597,108660.0,108650.0,0.51570832]
[1748002187505,0.20046597,108660.0,108650.0,0.91559696]
[1748002187911,0.20046597,108660.0,108650.0,0.51570832]
[1748002188255,0.20046597,108660.0,108650.0,1.10887813]
[1748002188457,0.20046597,108660.0,108650.0,1.11808174]
[1748002188568,0.20046597,108660.0,108650.0,1.10887813]
[1748002188772,0.20046597,108660.0,108650.0,1.11087796]
[1748002188773,0.19120506,108660.0,108650.0,1.11087796]
[1748002189048,0.18404343,108670.0,108650.0,1.11087813]
[1748002189306,0.01840493,108660.0,108650.0,1.1364887]
[1748002189531,0.21166898,108660.0,108650.0,0.70898949]
[1748002189733,0.21166898,108660.0,108650.0,1.11808174]
[1748002190162,0.21166898,108660.0,108650.0,0.70898949]
[1748002190379,0.21166898,108660.0,108650.0,0.72739696]
[1748002190590,0.21166898,108660.0,108650.0,0.73660057]
[1748002190763,0.20238562,108670.0,108660.0,0.19326338]
[1748002191033,0.01840526,108660.0,108650.0,1.11808106]
[1748002191243,0.02760827,108660.0,108650.0,1.11808106]
[1748002191448,0.23007424,108660.0,108650.0,0.72221917]
[1748002191659,0.23007424,108660.0,108650.0,0.69460886]
[1748002191872,0.22087182,108660.0,108650.0,0.71301582]
[1748002192253,0.02760844,108660.0,108650.0,0.71301582]
[1748002192394,0.22087182,108660.0,108650.0,0.71301582]
[1748002192609,0.20246631,108660.0,108650.0,0.34540508]
[1748002192813,0.20346631,108660.0,108650.0,0.36381221]
[1748002193159,0.01940509,108660.0,108650.0,0.37301548]
[1748002193392,0.01020242,108660.0,108650.0,1.03473039]
[1748002193555,0.02860802,108660.0,108650.0,1.03473039]
[1748002193715,0.001,108660.0,108650.0,0.71301548]
[1748002193925,0.20787091,108670.0,108660.0,0.20246597]
[1748002194130,0.00920157,108670.0,108660.0,1.04324778]
[1748002194437,0.01840171,108680.0,108670.0,0.21164874]
[1748002194649,0.02759981,108690.0,108680.0,0.21162944]
[1748002194814,0.02759981,108690.0,108680.0,0.31037607]
[1748002194815,0.01839968,108690.0,108680.0,0.31037607]
[1748002194978,0.23000998,108690.0,108680.0,0.31037615]
[1748002195198,0.03680003,108690.0,108680.0,0.36993899]
[1748002195567,0.23001065,108690.0,108680.0,0.36073826]
[1748002195985,0.23201065,108690.0,108680.0,0.36073826]
[1748002196207,0.20244717,108670.0,108660.0,0.01437848]
[1748002196410,0.20244717,108670.0,108660.0,0.01453191]
[1748002196620,0.20244717,108670.0,108660.0,0.21699788]
[1748002196826,0.21164934,108670.0,108660.0,0.21699788]
[1748002197017,0.2024476,108670.0,108660.0,0.01453191]
[1748002198027,0.2024476,108670.0,108660.0,0.01653191]
[1748002199048,0.2024476,108670.0,108660.0,0.01453191]
[1748002200410,0.2337476,108670.0,108660.0,0.01453191]
[1748002200628,0.74990506,108670.0,108660.0,0.00015343]
[1748002200851,0.83942657,108670.0,108660.0,0.00015343]
[1748002201077,0.35489316,108670.0,108660.0,0.00015343]
[1748002201284,0.00920411,108640.0,108630.0,0.17573425]
[1748002201494,0.21170735,108640.0,108630.0,0.27678617]
[1748002201697,0.01840848,108640.0,108630.0,0.37321175]
[1748002202164,0.01840831,108640.0,108630.0,0.37321175]
[1748002202385,0.0184073,108650.0,108640.0,0.21170752]
[1748002202596,0.18404169,108680.0,108660.0,0.01840535]
[1748002202828,0.20244726,108670.0,108660.0,0.2075294]
[1748002203050,0.220851,108670.0,108660.0,0.22363472]
[1748002203306,0.21164943,108670.0,108660.0,0.22363472]
[1748002203530,0.027606,108670.0,108660.0,0.22363472]
[1748002203748,0.00935407,108680.0,108670.0,0.21164891]
[1748002203955,0.20244742,108670.0,108660.0,0.39266858]
[1748002204139,0.211649,108670.0,108660.0,1.06238295]
[1748002204381,0.211649,108670.0,108660.0,0.85071414]
[1748002204624,0.21168762,108650.0,108640.0,0.52409386]
[1748002204830,0.193281,108650.0,108640.0,0.42954556]
[1748002205042,0.193281,108650.0,108640.0,0.28284418]
[1748002205246,0.19327824,108660.0,108650.0,0.20248478]
[1748002205517,0.20246597,108660.0,108650.0,0.13899887]
[1748002205773,0.20246631,108660.0,108650.0,0.04945331]
[1748002206057,0.20246631,108660.0,108650.0,0.20248478]
[1748002206309,0.20246631,108660.0,108650.0,0.19328117]
[1748002206563,0.20246631,108660.0,108650.0,0.20248486]
[1748002206823,0.01840653,108650.0,108640.0,0.21170676]
[1748002207110,0.00920318,108650.0,108640.0,0.30125232]
[1748002207358,0.21166839,108660.0,108650.0,0.19328117]
[1748002207623,0.01840645,108650.0,108640.0,0.35960514]
[1748002207879,0.01840645,108650.0,108640.0,0.36880942]
[1748002208122,0.02760972,108650.0,108640.0,0.36880942]
[1748002208328,0.03681307,108650.0,108640.0,0.36980942]
[1748002208559,0.03681307,108650.0,108640.0,0.76980942]
[1748002209201,0.20252172,108630.0,108620.0,0.01438318]
[1748002209455,0.20255901,108610.0,108600.0,0.0001]
[1748002209676,0.20255901,108610.0,108600.0,0.08964556]
[1748002209885,0.01841391,108610.0,108600.0,0.35567194]
[1748002210111,0.22097249,108610.0,108600.0,0.17150988]
[1748002210328,0.19335218,108610.0,108600.0,0.17150988]
[1748002210744,0.19335218,108610.0,108600.0,0.17202232]
[1748002210998,0.19335218,108610.0,108600.0,0.08247676]
[1748002211466,0.25615218,108610.0,108600.0,0.00161244]
[1748002211728,1.00741265,108610.0,108600.0,0.00061244]
[1748002211978,0.68569774,108610.0,108600.0,0.00061244]
[1748002212220,0.25656999,108600.0,108590.0,0.01903659]
[1748002212456,0.34611555,108600.0,108590.0,0.01903659]
[1748002213204,0.34611555,108600.0,108560.0,0.002]
[1748002213205,0.26783364,108570.0,108560.0,0.002]
[1748002213440,0.3573792,108570.0,108560.0,0.002]
[1748002214525,0.2921792,108570.0,108560.0,0.002]
[1748002214736,0.20263364,108570.0,108560.0,0.00215363]
[1748002215208,0.02763065,108570.0,108560.0,0.19789766]
[1748002215392,0.2118442,108570.0,108560.0,0.2852956]
[1748002215536,0.20263398,108570.0,108560.0,0.00215363]
[1748002215744,0.35507954,108570.0,108560.0,0.00215363]
[1748002215948,0.35707954,108570.0,108560.0,0.00215363]
[1748002217166,0.002,108570.0,108560.0,0.21401691]
[1748002217365,0.02963006,108570.0,108560.0,0.53573182]
[1748002217574,0.20463364,108570.0,108560.0,0.09167514]
[1748002217808,0.01120996,108570.0,108560.0,0.62527747]
[1748002218027,0.22305407,108570.0,108560.0,0.29435166]
[1748002218244,0.03884078,108570.0,108560.0,0.62527747]
[1748002218445,0.21384377,108570.0,108560.0,0.71479915]
[1748002218699,0.22305441,108570.0,108560.0,0.39308424]
[1748002218953,0.02763082,108570.0,108560.0,0.72401005]
[1748002219191,0.01841883,108580.0,108570.0,0.21184386]
[1748002219422,0.01841883,108580.0,108570.0,0.53355877]
[1748002219653,0.2118251,108580.0,108570.0,0.61387023]
[1748002219893,0.2118251,108580.0,108570.0,0.08952151]
[1748002220109,0.19342342,108570.0,108560.0,0.00215363]
[1748002220327,0.19342342,108570.0,108560.0,0.19559486]
[1748002220539,0.19342342,108570.0,108560.0,0.51730977]
[1748002221031,0.19342342,108570.0,108560.0,0.00215363]
[1748002221232,0.19542342,108570.0,108560.0,0.00215363]
[1748002221486,0.19542342,108570.0,108560.0,0.20480644]
[1748002221703,0.19542342,108570.0,108560.0,0.00215363]
[1748002221949,0.19642342,108570.0,108560.0,0.00215363]
[1748002222190,0.2148442,108570.0,108560.0,0.5288238]
[1748002222420,0.20563398,108570.0,108560.0,0.59968054]
[1748002222649,0.19642351,108570.0,108560.0,0.27796563]
[1748002222881,0.19642351,108570.0,108560.0,0.59968054]
[1748002223116,0.18821295,108570.0,108560.0,0.00215363]
[1748002223339,0.34125851,108570.0,108560.0,0.00215363]
[1748002223584,1.02297342,108570.0,108560.0,0.00215363]
[1748002223849,0.58875614,108560.0,108550.0,0.0001]
[1748002224052,0.58875614,108560.0,108500.0,0.0101]
[1748002224053,0.20274568,108510.0,108500.0,0.0101]
[1748002224257,0.20274568,108510.0,108500.0,0.0102537]
[1748002225313,0.20274568,108510.0,108500.0,0.05827156]
[1748002225515,0.19453037,108510.0,108500.0,0.0102537]
[1748002225872,0.19453037,108510.0,108500.0,0.19458549]
[1748002226081,0.1853148,108510.0,108500.0,0.19458549]
[1748002226322,0.01943088,108510.0,108500.0,0.71554286]
[1748002226541,0.03786159,108510.0,108500.0,0.80506437]
[1748002226749,0.21296133,108510.0,108500.0,0.38286914]
[1748002226957,0.20374602,108510.0,108500.0,0.26002217]
[1748002227158,0.01843427,108490.0,108480.0,1.00305001]
[1748002227360,0.01843427,108490.0,108480.0,0.70742211]
[1748002227607,0.21200048,108490.0,108480.0,0.61787664]
[1748002227806,0.21200048,108490.0,108480.0,0.57735878]
[1748002228022,0.21200048,108490.0,108480.0,1.0798613]
[1748002228230,0.35472903,108490.0,108480.0,0.03455669]
[1748002228365,0.35472903,108490.0,108480.0,0.02015381]
[1748002228366,0.32472903,108490.0,108480.0,0.02015381]
[1748002228555,0.20278347,108490.0,108480.0,0.02015381]
[1748002228817,0.20278347,108490.0,108480.0,0.02215381]
[1748002229020,0.20278347,108490.0,108480.0,0.02515381]
[1748002229232,0.20278347,108490.0,108480.0,0.02315381]
[1748002229422,0.20378347,108490.0,108480.0,0.02015381]
[1748002230409,0.20378347,108490.0,108480.0,0.2394175]
[1748002230615,0.18534878,108490.0,108480.0,0.05274746]
[1748002230813,0.18534878,108490.0,108480.0,0.04352918]
[1748002231456,0.18534878,108490.0,108480.0,0.42391688]
[1748002231623,0.18534878,108490.0,108480.0,0.60828266]
[1748002231823,0.18534878,108490.0,108480.0,0.21373787]
[1748002232064,0.18534878,108490.0,108480.0,0.02015381]
[1748002232414,0.18534878,108490.0,108480.0,0.2229559]
[1748002232644,0.18534878,108490.0,108480.0,0.02015381]
[1748002233372,0.18534878,108490.0,108480.0,0.22526013]
[1748002233373,0.19456604,108490.0,108480.0,0.22526013]
[1748002233575,0.19456604,108490.0,108480.0,0.20451959]
[1748002233790,0.18534878,108490.0,108480.0,0.02015381]
[1748002234005,0.18534878,108490.0,108480.0,0.2160422]
[1748002234193,0.18534878,108490.0,108480.0,0.02015381]
[1748002234405,0.18534878,108490.0,108480.0,0.02245814]
[1748002234610,0.001,108490.0,108480.0,0.22525989]
[1748002234790,0.001,108490.0,108480.0,0.38461881]
[1748002234994,0.001,108490.0,108480.0,0.72461881]
[1748002235197,0.001,108490.0,108480.0,0.81414032]
[1748002235449,0.001,108490.0,108480.0,1.21414032]
[1748002235603,0.02764611,108510.0,108500.0,0.55198053]
[1748002235797,0.00921514,108510.0,108500.0,0.64152609]
[1748002236005,0.01843045,108510.0,108500.0,0.64152609]
[1748002236214,0.01843045,108510.0,108500.0,0.72595544]
[1748002236411,0.20272753,108520.0,108510.0,0.19353037]
[1748002236671,0.20272753,108520.0,108500.0,0.72595476]
[1748002236672,0.00921523,108510.0,108500.0,0.72595476]
[1748002236863,0.00921514,108510.0,108500.0,0.72595476]
[1748002237060,0.01843011,108510.0,108500.0,0.72595476]
[1748002237477,0.00921497,108510.0,108500.0,0.72595476]
[1748002237724,0.20272702,108520.0,108510.0,0.20274585]
[1748002237924,0.20272702,108520.0,108510.0,0.19353045]
[1748002238072,0.00921421,108520.0,108510.0,0.21196065]
[1748002238271,0.00921217,108550.0,108540.0,0.01842578]
[1748002238671,0.002,108570.0,108560.0,0.1934414]
[1748002238895,0.01842205,108560.0,108550.0,0.21188297]
[1748002239102,0.0092109,108560.0,108550.0,0.25149757]
[1748002239305,0.01842188,108560.0,108550.0,0.21188289]
[1748002239505,0.0369974,108560.0,108550.0,0.21188289]
[1748002239712,0.04620923,108560.0,108550.0,0.21188289]
[1748002239918,0.01857535,108560.0,108550.0,0.21188289]
[1748002240344,0.0001533,108560.0,108550.0,0.57652289]
[1748002240563,0.0001533,108560.0,108550.0,1.14595713]
[1748002240773,0.01857535,108560.0,108550.0,1.14595713]
[1748002240949,0.0001533,108560.0,108550.0,1.14595713]
[1748002241387,0.0011533,108560.0,108550.0,1.14595713]
[1748002241799,0.0001533,108560.0,108550.0,1.14595713]
[1748002242207,0.0093642,108560.0,108550.0,1.09723338]
[1748002242409,0.20280577,108560.0,108550.0,0.36664]
[1748002242875,0.20280577,108560.0,108550.0,0.002]
[1748002244106,0.29235133,108560.0,108550.0,0.002]
[1748002244280,0.29235133,108560.0,108550.0,0.001]
[1748002244710,0.29435133,108560.0,108550.0,0.001]
[1748002244845,0.19345906,108550.0,108540.0,0.0001]
[1748002245255,0.27792877,108560.0,108550.0,0.00921225]
[1748002245455,0.27792877,108560.0,108550.0,0.20267114]
[1748002245456,0.21601641,108560.0,108550.0,0.20267114]
[1748002245657,0.00921183,108550.0,108540.0,0.20278913]
[1748002246034,0.02763533,108550.0,108540.0,0.20278913]
[1748002246473,0.0001533,108560.0,108550.0,0.55188289]
[1748002246685,0.0001533,108560.0,108550.0,0.70352845]
[1748002246900,0.0001533,108560.0,108550.0,0.79304996]
[1748002247534,0.01857518,108560.0,108550.0,0.79304996]
[1748002247749,0.20280594,108560.0,108550.0,0.20267106]
[1748002247961,0.01742425,108550.0,108540.0,0.52536386]
[1748002248182,0.01842367,108550.0,108540.0,0.64154796]
[1748002248398,0.21188273,108550.0,108540.0,0.63233537]
[1748002248603,0.00921166,108550.0,108540.0,0.73106947]
[1748002248845,0.00936454,108560.0,108550.0,0.21188289]
[1748002249050,0.22122824,108560.0,108550.0,0.20371114]
[1748002249276,0.21201726,108560.0,108550.0,0.20371114]
[1748002249487,0.21201726,108560.0,108550.0,0.20271114]
[1748002249697,0.18438321,108560.0,108550.0,4e-05]
[1748002249912,0.0001533,108560.0,108550.0,0.19349906]
[1748002250156,0.2028056,108560.0,108550.0,0.19349906]
[1748002250372,0.2028056,108560.0,108480.0,0.02]
[1748002250373,0.20278305,108490.0,108480.0,0.02]
[1748002250603,0.19356553,108490.0,108480.0,0.09225779]
[1748002250814,0.20278322,108490.0,108480.0,0.05915355]
[1748002251024,0.20278322,108490.0,108480.0,0.02855355]
[1748002251665,0.20278322,108490.0,108480.0,0.02]
[1748002251883,0.20278322,108490.0,108480.0,0.02015381]
[1748002252493,0.20278322,108490.0,108480.0,0.02119381]
[1748002255259,0.20278322,108490.0,108480.0,0.02349815]
[1748002255476,0.20278322,108490.0,108480.0,0.03790381]
[1748002255683,0.7694972,108490.0,108480.0,0.02119381]
[1748002255895,0.8336972,108490.0,108480.0,0.02119381]
[1748002256321,0.29232878,108490.0,108480.0,0.02119381]
[1748002257002,0.20278322,108490.0,108480.0,0.02123381]
[1748002257229,0.00921709,108490.0,108480.0,0.20559959]
[1748002257464,0.20508442,108490.0,108480.0,0.2230359]
[1748002257715,0.22121749,108490.0,108480.0,0.24147153]
[1748002257953,0.009,108490.0,108480.0,0.56407522]
[1748002258183,0.009,108490.0,108480.0,0.59417522]
[1748002258418,0.005,108490.0,108480.0,0.71612078]
[1748002258653,0.003,108490.0,108480.0,1.16924229]
[1748002258872,0.003,108490.0,108480.0,1.64020129]
[1748002259079,0.004,108490.0,108480.0,1.20564229]
[1748002259318,0.004,108490.0,108480.0,1.57024229]
[1748002259771,0.004,108490.0,108480.0,1.32705149]
[1748002259982,0.01321667,108490.0,108480.0,1.52981989]
[1748002260229,0.01321667,108490.0,108480.0,1.49741989]
[1748002260664,0.01321675,108490.0,108480.0,1.49841989]
[1748002260879,0.01321675,108490.0,108480.0,1.3879927]
[1748002261089,0.004,108490.0,108480.0,1.39621039]
[1748002261306,0.01321701,108490.0,108480.0,1.39921039]
[1748002261528,0.01843241,108500.0,108490.0,0.21200006]
[1748002261739,0.22119728,108500.0,108490.0,0.29230473]
[1748002261957,0.22119728,108500.0,108490.0,0.2923049]
[1748002262188,0.2119812,108500.0,108490.0,0.2923049]
[1748002262635,0.2119812,108500.0,108490.0,0.310739]
[1748002262886,0.00921446,108520.0,108510.0,0.19353054]
[1748002263132,0.01842909,108520.0,108510.0,0.24053042]
[1748002263416,0.22115635,108520.0,108510.0,0.24974633]
[1748002263675,0.01842884,108520.0,108510.0,0.25896156]
[1748002263940,0.20270866,108530.0,108520.0,0.19351254]
[1748002264224,0.00921421,108520.0,108510.0,0.24974531]
[1748002264488,0.19347645,108540.0,108530.0,0.19349113]
[1748002264729,0.25862858,108560.0,108550.0,0.19345914]
[1748002264730,0.01021073,108560.0,108550.0,0.19345914]
[1748002264961,0.03684766,108550.0,108540.0,0.20268947]
[1748002265168,0.02763541,108550.0,108540.0,0.22111542]
[1748002265379,0.01842341,108550.0,108540.0,0.22111542]
[1748002265584,0.01842341,108550.0,108540.0,0.30783864]
[1748002266025,0.02763549,108550.0,108540.0,0.30783864]
[1748002266238,0.03684766,108550.0,108540.0,0.30783864]
[1748002266455,0.03684766,108550.0,108540.0,0.22115542]
[1748002266679,0.22109522,108550.0,108540.0,0.20272998]
[1748002266884,0.20267131,108550.0,108540.0,4e-05]
[1748002267097,0.19038324,108560.0,108540.0,0.18430386]
[1748002267329,0.01842417,108550.0,108540.0,0.28618209]
[1748002267538,0.036848,108550.0,108540.0,0.29539468]
[1748002267746,0.20597251,108550.0,108540.0,4e-05]
[1748002267956,0.20367131,108550.0,108540.0,0.00925319]
[1748002268181,0.20367131,108550.0,108540.0,0.21194317]
[1748002268385,0.20367131,108550.0,108540.0,0.23036878]
[1748002268595,0.20367131,108550.0,108540.0,0.23036895]
[1748002268810,0.20367131,108550.0,108540.0,0.21194317]
[1748002269024,0.20367131,108550.0,108540.0,0.22115602]
[1748002269251,0.01942442,108550.0,108540.0,0.30645013]
[1748002269466,0.02172562,108550.0,108540.0,0.30645013]
[1748002269690,0.01251312,108550.0,108540.0,0.30645013]
[1748002269909,0.04936128,108550.0,108540.0,0.2303681]
[1748002270120,0.0033012,108550.0,108540.0,0.2303681]
[1748002270343,0.001,108550.0,108540.0,0.6346681]
[1748002270575,0.001,108550.0,108540.0,0.72421366]
[1748002271009,0.01942375,108550.0,108540.0,0.95681551]
[1748002271229,0.01942375,108550.0,108540.0,0.3646]
[1748002271230,0.20267131,108550.0,108540.0,0.3646]
[1748002271445,0.20267131,108550.0,108540.0,4e-05]
[1748002271656,0.20267131,108550.0,108540.0,0.18630386]
[1748002271924,0.20267131,108550.0,108540.0,0.00204]
[1748002272131,0.22465923,108550.0,108540.0,0.00204]
[1748002272346,0.26560832,108530.0,108520.0,4e-05]
[1748002272576,0.77845087,108530.0,108520.0,4e-05]
[1748002272789,1.1723223,108530.0,108520.0,4e-05]
[1748002273220,0.19354389,108480.0,108470.0,0.17104165]
[1748002273434,0.0184358,108480.0,108470.0,0.38308071]
[1748002273657,0.21201978,108480.0,108470.0,0.22962544]
[1748002273873,0.20280201,108480.0,108470.0,0.17104165]
[1748002274305,0.29234757,108480.0,108470.0,0.17104165]
[1748002274513,0.29250073,108480.0,108470.0,0.17104165]
[1748002274942,0.01858939,108480.0,108470.0,0.37386243]
[1748002275162,0.00937068,108480.0,108470.0,0.45112233]
[1748002275380,0.20295491,108480.0,108470.0,0.22990422]
[1748002275590,0.01858862,108480.0,108470.0,0.37390226]
[1748002275806,0.20525611,108480.0,108470.0,0.17108165]
[1748002276016,0.02258913,108480.0,108470.0,0.37390226]
[1748002276219,0.02258913,108480.0,108470.0,0.44171684]
[1748002276428,0.00415316,108480.0,108470.0,0.44171684]
[1748002276644,0.01637085,108480.0,108470.0,0.44171684]
[1748002276849,0.00715316,108480.0,108470.0,0.44171684]
[1748002277059,0.00415316,108480.0,108470.0,0.44171684]
[1748002277265,0.00215316,108480.0,108470.0,0.50351684]
[1748002277412,0.00215316,108480.0,108470.0,0.9330624]
[1748002277623,0.00415316,108480.0,108470.0,0.9330624]
[1748002279195,0.00415316,108480.0,108470.0,1.3330624]
[1748002279633,0.00415316,108480.0,108470.0,0.9330624]
[1748002280007,0.00415316,108480.0,108470.0,2.3150164]
[1748002280299,0.00415316,108480.0,108470.0,2.4597794]
[1748002280776,0.00415316,108480.0,108470.0,1.3330624]
[1748002280777,0.00215316,108480.0,108470.0,1.3330624]
[1748002281021,0.03902476,108480.0,108470.0,0.26062721]
[1748002281227,0.20495525,108480.0,108470.0,0.17108165]
[1748002281437,0.29450081,108480.0,108470.0,0.17308165]
[1748002281637,0.29450081,108480.0,108470.0,0.17508165]
[1748002281790,0.29450081,108480.0,108470.0,0.17308165]
[1748002281791,0.29250081,108480.0,108470.0,0.17308165]
[1748002281996,0.4091155,108480.0,108470.0,4e-05]
[1748002282204,0.35510081,108480.0,108470.0,4e-05]
[1748002283168,0.35510081,108480.0,108470.0,0.00404]
[1748002283360,0.20285717,108450.0,108440.0,0.21209812]
[1748002283563,0.01844039,108450.0,108440.0,0.22131921]
[1748002283777,0.01843971,108460.0,108450.0,0.20285819]
[1748002283948,0.02765927,108460.0,108450.0,0.221299]
[1748002284165,0.01843792,108470.0,108460.0,0.20283914]
[1748002284309,0.00921854,108470.0,108460.0,0.21205853]
[1748002284549,0.02865595,108470.0,108460.0,0.21205853]
[1748002284774,0.02865612,108470.0,108460.0,0.35112818]
[1748002284957,0.01943716,108470.0,108460.0,0.35112818]
[1748002285167,0.001,108470.0,108460.0,0.38262818]
[1748002285378,0.01021871,108470.0,108460.0,0.41322818]
[1748002285591,0.02865638,108470.0,108460.0,0.26158262]
[1748002285813,0.001,108470.0,108460.0,0.27080277]
[1748002286030,0.02143716,108470.0,108460.0,0.27080277]
[1748002286253,0.02143716,108470.0,108460.0,0.63548277]
[1748002286461,0.03065604,108470.0,108460.0,0.63548277]
[1748002286680,0.01721845,108470.0,108460.0,0.63648277]
[1748002286901,0.02143716,108470.0,108460.0,0.66788277]
[1748002287163,0.008,108470.0,108460.0,0.75842833]
[1748002287405,0.02643716,108470.0,108460.0,0.79132833]
[1748002287652,0.01721854,108470.0,108460.0,0.79132833]
[1748002287881,0.01721845,108470.0,108460.0,0.79132833]
[1748002288084,0.02643707,108470.0,108460.0,0.79132833]
[1748002288534,0.03565586,108470.0,108460.0,0.79132833]
[1748002288758,0.008,108470.0,108460.0,0.79132833]
[1748002289584,0.008,108470.0,108460.0,1.13132833]
[1748002289788,0.25764392,108510.0,108500.0,0.1935482]
[1748002289789,0.02764602,108510.0,108500.0,0.1935482]
[1748002289996,0.01843257,108500.0,108490.0,0.00556779]
[1748002290206,0.20282044,108470.0,108460.0,0.001]
[1748002290413,0.20285785,108450.0,108440.0,4e-05]
[1748002290622,0.19360165,108470.0,108450.0,0.20285793]
[1748002290889,0.19359866,108480.0,108460.0,0.27725895]
[1748002291095,0.18437226,108500.0,108480.0,0.20280175]
[1748002291301,0.19354778,108500.0,108490.0,0.56980772]
[1748002291511,0.1935477,108500.0,108490.0,0.6478316]
[1748002291723,0.02764815,108500.0,108490.0,0.70608305]
[1748002291974,0.0092154,108510.0,108500.0,0.20276436]
[1748002292189,0.00921438,108520.0,108510.0,0.20274602]
[1748002292398,0.01842875,108520.0,108510.0,0.20274602]
[1748002292632,0.04607197,108520.0,108510.0,0.22117673]
[1748002292840,0.04607197,108520.0,108500.0,0.08904123]
[1748002292841,0.20274611,108510.0,108500.0,0.08904123]
[1748002293275,0.18929782,108520.0,108510.0,0.20274602]
[1748002293541,0.18929782,108520.0,108500.0,0.1935482]
[1748002293542,0.00921531,108510.0,108500.0,0.1935482]
[1748002293748,0.01843037,108510.0,108500.0,0.21198044]
[1748002293964,0.01843037,108510.0,108490.0,0.76472]
[1748002293965,0.01843257,108500.0,108490.0,0.76472]
[1748002294217,0.20276436,108500.0,108490.0,0.36472]
[1748002294440,0.20276436,108500.0,108490.0,0.54906878]
[1748002294712,0.20276436,108500.0,108490.0,0.56750356]
[1748002294962,0.20276436,108500.0,108490.0,0.585938]
[1748002295167,0.00921591,108500.0,108490.0,0.77422157]
[1748002295623,0.19366621,108520.0,108510.0,0.19353045]
[1748002295872,0.00015367,108520.0,108510.0,0.20274585]
[1748002296121,0.00936788,108520.0,108510.0,0.25251195]
[1748002296351,0.20288067,108520.0,108510.0,0.24329681]
[1748002296600,0.20288067,108520.0,108510.0,0.20274602]
[1748002296837,0.21196167,108510.0,108500.0,0.00921658]
[1748002297083,0.19356621,108490.0,108470.0,0.24708277]
[1748002297325,0.20280226,108480.0,108470.0,0.9259387]
[1748002297557,0.20280226,108480.0,108470.0,0.55828173]
[1748002297787,0.20280226,108480.0,108470.0,0.36468]
[1748002298028,0.20280226,108480.0,108470.0,0.55828182]
[1748002298245,0.19358406,108480.0,108470.0,0.36468]
[1748002298488,0.19358406,108480.0,108470.0,0.35028]
[1748002298718,0.19458406,108480.0,108470.0,0.35079294]
[1748002298951,0.19458406,108480.0,108470.0,0.35083294]
[1748002299437,0.20285785,108450.0,108440.0,4e-05]
[1748002300324,0.19363744,108450.0,108440.0,4e-05]
[1748002300556,0.283183,108450.0,108440.0,0.0086212]
[1748002300789,0.10998663,108450.0,108440.0,0.21149809]
[1748002301032,0.21407868,108450.0,108440.0,0.09022486]
[1748002301263,0.20485827,108450.0,108440.0,0.0086212]
[1748002301519,0.52939817,108450.0,108440.0,4e-05]
[1748002301757,0.65104373,108450.0,108440.0,4e-05]
[1748002301986,0.76434504,108450.0,108440.0,4e-05]
[1748002302463,0.76434504,108450.0,108440.0,8e-05]
[1748002302659,0.85386655,108450.0,108440.0,8e-05]
[1748002302915,0.86386655,108450.0,108440.0,8e-05]
[1748002303138,0.29640383,108450.0,108440.0,8e-05]
[1748002303365,0.77444504,108450.0,108440.0,8e-05]
[1748002304478,0.78244504,108450.0,108440.0,8e-05]
[1748002304703,0.01,108440.0,108430.0,0.02774392]
[1748002304925,1.10284326,108440.0,108430.0,0.02774392]
[1748002305147,1.09054206,108440.0,108430.0,0.02774392]
[1748002305385,1.11564888,108440.0,108430.0,0.02774392]
[1748002305606,0.71130767,108440.0,108430.0,0.02774392]
[1748002305827,1.09054206,108440.0,108430.0,0.02774392]
[1748002306050,1.20057579,108440.0,108430.0,0.02774392]
[1748002306270,1.10105428,108440.0,108430.0,0.02774392]
[1748002306482,0.69727571,108440.0,108430.0,0.02774392]
[1748002306696,0.20338809,108440.0,108430.0,0.22141716]
[1748002306907,0.20338809,108440.0,108430.0,0.02874392]
[1748002306908,0.21260952,108440.0,108430.0,0.02874392]
[1748002307120,0.2218312,108440.0,108430.0,0.24086146]
[1748002307333,0.01895431,108440.0,108430.0,0.33860491]
[1748002307553,0.03739708,108440.0,108430.0,0.32938305]
[1748002307758,0.23305322,108440.0,108430.0,0.02774392]
[1748002307981,0.20538928,108440.0,108430.0,0.21219471]
[1748002308163,0.19616768,108440.0,108430.0,0.23063952]
[1748002308399,0.19616768,108440.0,108430.0,0.22141724]
[1748002308608,0.19616768,108440.0,108430.0,0.23063969]
[1748002309025,0.20538911,108440.0,108430.0,0.24908433]
[1748002309206,0.01173314,108440.0,108430.0,0.25830593]
[1748002309445,0.03939708,108440.0,108430.0,0.25830593]
[1748002309656,0.21460994,108440.0,108430.0,0.23063944]
[1748002309862,0.21460994,108440.0,108430.0,0.23986163]
[1748002310364,0.19616751,108440.0,108430.0,0.02774392]
[1748002312312,0.27649156,108440.0,108420.0,0.27414037]
[1748002312521,0.28571316,108440.0,108430.0,0.18445079]
[1748002312729,0.01173322,108440.0,108430.0,0.21211737]
[1748002312955,0.01403485,108440.0,108420.0,0.48627569]
[1748002313166,0.01403485,108440.0,108430.0,0.22133973]
[1748002313167,0.02095431,108440.0,108430.0,0.22133973]
[1748002313384,0.04069828,108440.0,108430.0,0.2028956]
[1748002313592,0.21591114,108440.0,108430.0,0.21211805]
[1748002313795,0.21360994,108440.0,108430.0,0.22134024]
[1748002313997,0.02917616,108440.0,108430.0,0.23056218]
[1748002314207,0.03147736,108440.0,108430.0,0.23056218]
[1748002314418,0.22513282,108440.0,108430.0,0.00922253]